Cogmind - Beta 9.6 @@@ ROGUE MODE // 2020.05.21 @ 20:08:43 Player: Overmind Result: Destroyed by G-34 Mercenary with Small Laser Performance ------------- Evolutions (0) 0 Regions Visited (1) 200 Robots Destroyed (5) 25 Value Destroyed (114) 114 Prototype IDs (0) 0 Alien Tech Used (0) 0 Bonus (0) 0 TOTAL SCORE: 339 Bonus ------- None Cogmind --------- Core Integrity 0/250 Matter 292/300 Energy 95/100 System Corruption 0% Temperature Cool (6) Movement Core (200) Ox3 Location -10/Materials Parts ------- > --- POWER (1) -------- (None) > --- PROPULSION (2) --- (None) > --- UTILITY (2) ------ Medium Storage Unit Visual Processing Unit > --- WEAPON (2) ------- Maul > --- INVENTORY (8) ---- Hover Unit Light Assault Rifle Grenade Launcher Peak State ------------ > --- POWER ------------ Ion Engine > --- PROPULSION ------- Aluminum Leg Aluminum Leg > --- UTILITY ---------- Medium Storage Unit Visual Processing Unit > --- WEAPON ----------- Assault Rifle Maul > --- INVENTORY -------- Light Assault Rifle Grenade Launcher [Rating: 9] Favorites ----------- Power Ion Engine Engine Ion Engine Propulsion Aluminum Leg Leg Aluminum Leg Utility Visual Processing Unit Storage Medium Storage Unit Processor Visual Processing Unit Weapon Assault Rifle Ballistic Gun Assault Rifle Impact Weapon Maul Build | -11 -10 ------- Run | Scr Mat Slots Evolved . | . . Power . | . . Propulsion . | . . Utility . | . . Weapon . | . . Parts Attached 8 | 5 3 Power 1 | 1 . Engine 1 | 1 . Core . | . . Reactor . | . . Propulsion 2 | 2 . Treads . | . . Leg 2 | 2 . Wheel . | . . Hover . | . . Flight . | . . Utility 2 | . 2 Device . | . . Storage 1 | . 1 Processor 1 | . 1 Hackware . | . . Protection . | . . Artifact . | . . Weapon 3 | 2 1 Energy Gun . | . . Energy Cannon . | . . Ballistic Gun 2 | 2 . Ballistic Cannon . | . . Launcher . | . . Special Weapon . | . . Impact Weapon 1 | . 1 Slashing Weapon . | . . Piercing Weapon . | . . Special Melee Weapon . | . . Unidentified Prototypes . | . . Parts Lost 4 | . 4 Power 1 | . 1 Propulsion 2 | . 2 Utility . | . . Weapon 1 | . 1 Highest Loss Streak 4 | . 4 Average Slot Usage (%) 88 | . 88 Engine 13 | . 13 Leg 27 | . 27 Storage 7 | . 7 Processor 12 | . 12 Ballistic Gun 14 | . 14 Impact Weapon 11 | . 11 Naked Turns . | . . Heaviest Build 18 | 8 18 Greatest Support 20 | 20 20 Greatest Overweight (x) 3 | . 3 Average Overweight (x) . | . . Largest Inventory Capacity 8 | 4 8 Average Capacity 5 | 4 6 Most Carried 3 | 3 3 Average Carried 1 | . 1 Final Capacity 8 | 4 8 Final Carried 3 | . 3 Class Distribution -------------------- 100% | Mutant Dominant Class ---------------- Mutant | -10/Materials Resources | -11 -10 ----------- Run | Scr Mat Matter Collected 270 | 135 135 Remotely . | . . Salvage Created 288 | . 288 Parts 5 | . 5 Haulers Intercepted . | . . Recyclers Shooed . | . . Parts Field Recycled . | . . Retrieved Matter . | . . Parts Self-Destructed . | . . Prevented . | . . Kills | -11 -10 ------- Run | Scr Mat Combat Hostiles Destroyed 3 | . 3 Melee 2 | . 2 Classes Destroyed 2 | . 2 Recycler 2 | . 2 Grunt 3 | . 3 Best Kill Streak 4 | . 4 Combat Bots Only 2 | . 2 Max Kills in Single Turn 1 | . 1 Gunslinging . | . . Exploded . | . . Melee 1 | . 1 Uniques/NPCs Destroyed . | . . Combat | -11 -10 -------- Run | Scr Mat Damage Taken 738 | . 738 Core 259 | . 259 Absorbed by Shields . | . . Core Remaining (%) 100 | 100 . Volleys Fired 6 | . 6 Largest 1 | . 1 Hottest 20 | . 20 Shots Fired 6 | . 6 Gun 6 | . 6 Cannon . | . . Launcher . | . . Special . | . . Kinetic 6 | . 6 Thermal . | . . Explosive . | . . Electromagnetic . | . . Robot Hit Streak 2 | . 2 Robot Miss Streak 1 | . 1 Penetration Max . | . . Secondary Targets . | . . Shots Hit Robots 23 | . 23 Core Hits 3 | . 3 Critical Hits . | . . Critical Kills . | . . Critical Parts Destroyed . | . . Melee Attacks 27 | . 27 Impact 27 | . 27 Slashing . | . . Piercing . | . . Sneak Attacks 4 | . 4 Combat Hostiles 1 | . 1 Follow-up Attacks . | . . Damage Inflicted 747 | . 747 Guns 49 | . 49 Cannons . | . . Explosions . | . . Melee 698 | . 698 Ramming . | . . Kinetic 49 | . 49 Thermal . | . . Explosive . | . . Electromagnetic . | . . Impact 698 | . 698 Slashing . | . . Piercing . | . . Highest Corruption . | . . Average Corruption . | . . Corruption Purged . | . . Overload Shots . | . . Overflow Damage 103 | . 103 Projectiles . | . . Explosions . | . . Melee 103 | . 103 Knockbacks 3 | . 3 Impact 3 | . 3 Kinetic . | . . Secondary . | . . Self-Inflicted Damage . | . . Shots . | . . Rammed . | . . Targets Rammed . | . . Kicked . | . . Crushed . | . . Highest Temperature . | . . Average Temperature . | . . Received Heat Transfer 402 | . 402 Siege Activations . | . . Robots Corrupted . | . . Combat Hostiles . | . . Parts Fried 4 | . 4 Impact Corruptions 3 | . 3 Robots Melted . | . . Combat Hostiles . | . . Parts Melted . | . . Heat Transferred . | . . Parts Sabotaged . | . . Parts Stolen . | . . Parts Stripped . | . . Power Chain Reactions . | . . Missiles Intercepted . | . . Alert | -11 -10 ------- Run | Scr Mat Peak Influence 95 | . 95 Average Influence 48 | . 53 Maximum Alert Level . | . . Low Security (%) 100 | 100 100 Level 1 . | . . Level 2 . | . . Level 3 . | . . Level 4 . | . . Level 5 . | . . High Security . | . . Max Security . | . . Squads Dispatched 2 | . 2 Investigation 2 | . 2 Extermination . | . . Reinforcement . | . . Assault . | . . Garrison . | . . Intercept . | . . Construction Impeded . | . . Haulers Reinforced . | . . Stealth | -11 -10 --------- Run | Scr Mat Distress Signals 2 | . 2 Communications Jammed . | . . Distress Signals . | . . Times Spotted 8 | . 8 Peak Tracking Total 3 | . 3 Tactical Retreats 1 | . 1 Traps | -11 -10 ------- Run | Scr Mat Traps Triggered 1 | . 1 Indirectly . | . . Trap Hack Attempts . | . . Triggered . | . . Disarmed . | . . Reprogrammed . | . . Reused . | . . Traps Extracted . | . . Installed . | . . Triggered . | . . Machines | -11 -10 ---------- Run | Scr Mat Machines Disabled . | . . Max in Single Turn . | . . Machines Sabotaged . | . . Garrisons Compromised . | . . Overloaded Fab Kills . | . . Fab Network Shutdowns . | . . Hacking | -11 -10 --------- Run | Scr Mat Machines Accessed 2 | . 2 Terminals 2 | . 2 Fabricators . | . . Repair Stations . | . . Recycling Units . | . . Scanalyzers . | . . Garrison Access . | . . Total Hacks 7 | . 7 Successful . | . . Failed 7 | . 7 Catastrophic 2 | . 2 Database Lockouts . | . . Manual 7 | . 7 Terminals 7 | . 7 Fabricators . | . . Repair Stations . | . . Recycling Units . | . . Scanalyzers . | . . Garrison Access . | . . Terminal Hacks . | . . Fabricator Hacks . | . . Repair Station Hacks . | . . Recycling Unit Hacks . | . . Scanalyzer . | . . Garrison Access Hacks . | . . Unauthorized Hacks . | . . Terminals . | . . Fabricators . | . . Repair Stations . | . . Recycling Units . | . . Scanalyzers . | . . Garrison Access . | . . Data Cores Recovered . | . . Used . | . . Hacking Detections 2 | . 2 Full Trace Events 2 | . 2 Feedback Events . | . . Feedback Blocked . | . . Robot Schematics Acquired . | . . Robots Built . | . . Matter . | . . Time . | . . Total Robot Build Rating . | . . Part Schematics Acquired . | . . Parts Built . | . . Matter . | . . Time . | . . Total Part Build Rating . | . . Parts Repaired . | . . Time . | . . Parts Recycled . | . . Recycled Matter . | . . Retrieved Matter . | . . Retrieved Components . | . . Parts Scanalyzed . | . . Part Schematics Acquired . | . . Parts Damaged . | . . Bothacking | -11 -10 ------------ Run | Scr Mat Used RIF Installer . | . . Robots Hacked . | . . Non-combat . | . . Combat . | . . Robot Hacks Applied . | . . Relay Couplers Released . | . . Robots Rewired . | . . Allies Hacked . | . . Hacks Repelled . | . . Allies | -11 -10 -------- Run | Scr Mat Total Allies . | . . Largest Group . | . . Highest-Rated Group . | . . Highest-Rated Ally . | . . Total Orders . | . . Ally Attacks . | . . Total Damage . | . . Kills . | . . Allies Corrupted . | . . Allies Melted . | . . Intel | -11 -10 ------- Run | Scr Mat Robot Analysis Total . | . . Derelict Logs Recovered . | . . Drone Launches . | . . Drone Recoveries . | . . Exploration | -11 -10 ------------- Run | Scr Mat Turns Passed 489 | 42 447 Spaces Moved 308 | 33 275 Core 12 | 10 2 Treads . | . . Legs 296 | 23 273 Wheels . | . . Hover . | . . Flight . | . . Fastest Speed 50 | 50 120 Average Speed 118 | 98 120 Slowest Speed 200 | 120 200 Overloaded Moves . | . . Propulsion Burnouts . | . . Robots Hopped . | . . Cave-ins Triggered . | . . Exploration Rate (%) 24 | 3 45 Regions Visited 1 Branch Regions . Pre-discovered Areas . | . . Known Exits Taken . | . . Unknown Exits Taken 1 | 1 . Scrap Searched . | . . Spaces Dug . | . . Terrain Destroyed . | . . Melee . | . . Projectile . | . . AOE . | . . Actions | -11 -10 --------- Run | Scr Mat Total 375 | 42 333 Wait 16 | . 16 Move 307 | 32 275 Hop . | . . Pick Up 10 | 5 5 Fast Attach . | . . Attach 8 | 5 3 Detach 1 | . 1 Swap . | . . Drop . | . . Fire 6 | . 6 Melee 27 | . 27 Ram . | . . Kick . | . . Crush . | . . Escape Stasis . | . . Rewire . | . . Trap . | . . Miscellaneous . | . . Route ------- -11/Scrapyard -10/Materials (discovered 2 exits: [*Mat] / [*Min]) History --------- Turn | Location | Event 5 | -11/Scrapyard | Discovered new exit (range 16) 43 | -11/Scrapyard | Entered Materials 258 | -10/Materials | Discovered new exit (range 7) 306 | -10/Materials | Build established: Mutant 347 | -10/Materials | Discovered new exit (range 18) 460 | -10/Materials | Core integrity fell below 50% 482 | -10/Materials | Core integrity fell below 20% 490 | -10/Materials | Destroyed by G-34 Mercenary with Small Laser Last Messages --------------- 00258_ EXIT=FOUND 00265_ Acquired Med. Storage Unit. 00318_ Sneak attack on K-01 Serf. 00318_ Destroyed Lgt. Ion Engine. 00318_ K-01 Serf system corrupted by crushing effect. 00329_ Connecting with Terminal... 00329_ Current location identified: Materials 00347_ EXIT=FOUND 00363_ K-01 Serf cleans the Terminal. 00377_ Acquired Hover Unit. 00408_ Connecting with Terminal... 00408_ ALERT: Suspicious activity at Terminal M006. Dispatching Investigation squad. 00423_ G-34 Mercenary knocked back. 00432_ G-34 Mercenary destroyed. 00453_ G-34 Mercenary knocked back. 00455_ Assault Rifle destroyed. 00464_ G-34 Mercenary knocked back. 00477_ Ion Engine destroyed. 00478_ Aluminum Leg destroyed. Map ----- +----------------------------------------------------+ | ???????????????????????????????? #????????????? | | ???????????????????????????????? #????????????? | | ??????????? ??????????????????# #????????????? | | ??????????? ??????????????????# #????????????? | | ?????????## ??????????????????# #????????????? | | ????????? ??????????????????# #????????????? | | ????????? ??????????????????# #????????????? | | ????????? ??????????????????# #????????????? | | ?????##??# #?????????????????# #????????????? | | ?????? ??# #?????????????????# #???########?? | | ?????? ?# #?????????????????# #?? !!! #?? | | ??????? ?# #???#????????????## ##? !! #?? | | ????????!# #???# ######+### # !! #?? | | ???????? # ? T" # #?? | | ?????????+ ? " + #?? | | ?????????# ? # = #?? | | ?????????# ##################= #???????????? | | ?????????# # #???## ##???????????? | | ??????#+## # """ #????# #????????????? | | ??????# + """ #????# #????????????? | | ??????# # "T" """ #????# #????????????? | | ??##### # #????# #????????????? | | ###########+##????# #????????????? | | #### ######+##### # #????## ##???????????? | | ???# #?# # # ###### ########????? | | ???# #?# # """ #g@ g #????? | | ???# #?# # """ + % < #????? | | ???# #?# # """ # [ #????? | | ???# #?# # !######## ########????? | | ???# #?# # """ #??#######+#######???????? | | #### ### # """ #??# #???????? | | + # """ #??# #???????? | | ######## # ???# ! #???????? | | ???????##########! ???# !! ! #???????? | | ????????????????? ???# #???????? | | ????????????????#######???# #???????? | | ??????????????????????????###############???????? | | | | | | | | | | | | | | | | | | | | | | | | | | | +----------------------------------------------------+ Best States ------------- Heat Dissipation 25 Energy Generation 10 Energy Capacity 250 Matter Stores 300 Matter Capacity 300 Sight Range 18 Terrain Scan Density 10 Evasion (%) 40 Item Schematics ----------------- None Robot Schematics ------------------ None Fabricated ------------ Nothing Alien Tech Used ----------------- None Achievements -------------- None Challenges ------------ None Game ------ Seed AssembledHugeDiverter Manual? 0 Play Time 00:08:00 Cumulative 10.9 hours Start 2020.05.21 @ 20:04:27 End 2020.05.21 @ 20:08:43 Sessions 1 Manual Loads 0 Difficulty Rogue Special Mode None Game No. 25 Rogue 9 Adventurer 16 Explorer 0 Win Type - Total 0 Types 0/0/0/0/0/0/0 Lore% 7 Gallery% 17 Achievement% 14 Wizard Run 0 Options --------- ASCII 0 Keyboard 1 Movement Arrows Keybinds 0 Fullscreen 2 Font 18/CogNarrow Map View 76x50 Tactical HUD 1 Map Filters NONE Filters NONE Steam 0 RUN: c521a92e-1bd4-4654-bb4d-28ac26f6d365